[Event "Titled Tuesday Blitz August 1 Late 2023"]
[White "Harshavardhan G B"]
[Black "Karwowski, Kacper"]
[WhiteFideId "25059009"]
[BlackFideId "1126032"]
[WhiteElo "2866"]
[BlackElo "2559"]
[Result "1-0"]
[Round "3"]
[TimeControl "180+1"]
[Date "2023.08.01"]
[WhiteClock "0:00:26"]
[BlackClock "0:00:00"]
[Board "44"]

1. d4 {[%clk 0:03:00]}  d5 {[%clk 0:02:58]} 2. c4 {[%clk 0:03:01]}  e6 {[%clk 0:02:57]} 3. Nc3 {[%clk 0:03:00]}  a6 {[%clk 0:02:56]} 4. cxd5 {[%clk 0:02:58]}  exd5 {[%clk 0:02:57]} 5. Qb3 {[%clk 0:02:58]}  c5 {[%clk 0:02:54]} 6. Qxd5 {[%clk 0:02:55]}  cxd4 {[%clk 0:02:44]} 7. Qxd8+ {[%clk 0:02:54]}  Kxd8 {[%clk 0:02:45]} 8. Ne4 {[%clk 0:02:49]}  Bf5 {[%clk 0:02:34]} 9. Ng3 {[%clk 0:02:47]}  Bg6 {[%clk 0:02:34]} 10. Nf3 {[%clk 0:02:47]}  Nc6 {[%clk 0:02:33]} 11. e3 {[%clk 0:02:44]}  Bc5 {[%clk 0:02:27]} 12. Bc4 {[%clk 0:02:34]}  dxe3 {[%clk 0:02:24]} 13. Bxe3 {[%clk 0:02:32]}  Bxe3 {[%clk 0:02:24]} 14. fxe3 {[%clk 0:02:33]}  f6 {[%clk 0:02:18]} 15. O-O {[%clk 0:02:24]}  Nge7 {[%clk 0:02:15]} 16. e4 {[%clk 0:02:19]}  Kc7 {[%clk 0:02:09]} 17. Rac1 {[%clk 0:02:17]}  Rad8 {[%clk 0:02:05]} 18. Bb3 {[%clk 0:02:14]}  Kb8 {[%clk 0:02:02]} 19. Rfe1 {[%clk 0:02:12]}  Ne5 {[%clk 0:01:46]} 20. Nxe5 {[%clk 0:02:07]}  fxe5 {[%clk 0:01:47]} 21. h4 {[%clk 0:02:05]}  Rhf8 {[%clk 0:01:27]} 22. Rc5 {[%clk 0:01:59]}  Nc6 {[%clk 0:00:51]} 23. Re3 {[%clk 0:01:49]}  Rd2 {[%clk 0:00:47]} 24. h5 {[%clk 0:01:09]}  Bf7 {[%clk 0:00:38]} 25. Rc2 {[%clk 0:01:06]}  Rxc2 {[%clk 0:00:37]} 26. Bxc2 {[%clk 0:01:07]}  Bxa2 {[%clk 0:00:35]} 27. b3 {[%clk 0:01:05]}  Nd4 {[%clk 0:00:34]} 28. Bd1 {[%clk 0:01:05]}  Rc8 {[%clk 0:00:25]} 29. Kh2 {[%clk 0:00:59]}  Rc1 {[%clk 0:00:23]} 30. Rd3 {[%clk 0:00:57]}  Bb1 {[%clk 0:00:23]} 31. Rd2 {[%clk 0:00:56]}  Rc3 {[%clk 0:00:20]} 32. Nf5 {[%clk 0:00:46]}  Nxf5 {[%clk 0:00:19]} 33. exf5 {[%clk 0:00:47]}  Bxf5 {[%clk 0:00:20]} 34. Rd8+ {[%clk 0:00:47]}  Rc8 {[%clk 0:00:19]} 35. Rd5 {[%clk 0:00:47]}  Re8 {[%clk 0:00:19]} 36. g4 {[%clk 0:00:44]}  Be4 {[%clk 0:00:19]} 37. Rd2 {[%clk 0:00:44]}  Re7 {[%clk 0:00:18]} 38. Kg3 {[%clk 0:00:43]}  g5 {[%clk 0:00:18]} 39. Rd8+ {[%clk 0:00:41]}  Kc7 {[%clk 0:00:18]} 40. Rg8 {[%clk 0:00:42]}  Bc6 {[%clk 0:00:17]} 41. Rxg5 {[%clk 0:00:39]}  e4 {[%clk 0:00:17]} 42. Be2 {[%clk 0:00:38]}  e3 {[%clk 0:00:16]} 43. Rf5 {[%clk 0:00:38]}  Kd6 {[%clk 0:00:16]} 44. Kf4 {[%clk 0:00:36]}  Bb5 {[%clk 0:00:15]} 45. Kf3 {[%clk 0:00:30]}  Bxe2+ {[%clk 0:00:12]} 46. Kxe2 {[%clk 0:00:31]}  Re4 {[%clk 0:00:12]} 47. g5 {[%clk 0:00:29]}  Rh4 {[%clk 0:00:12]} 48. h6 {[%clk 0:00:28]}  Ke6 {[%clk 0:00:08]} 49. Rf6+ {[%clk 0:00:28]}  Ke7 {[%clk 0:00:08]} 50. Rb6 {[%clk 0:00:28]}  Rh2+ {[%clk 0:00:03]} 51. Kxe3 {[%clk 0:00:27]}  Rh3+ {[%clk 0:00:04]} 52. Kf4 {[%clk 0:00:28]}  Kf8 {[%clk 0:00:04]} 53. Rxb7 {[%clk 0:00:27]}  a5 {[%clk 0:00:04]} 54. Rxh7 {[%clk 0:00:26]}  Rxb3 {[%clk 0:00:04]} 55. Ra7 {[%clk 0:00:26]}  Rb4+ {[%clk 0:00:05]} 56. Kf5 {[%clk 0:00:26]}  Rb5+ {[%clk 0:00:05]} 57. Kg6 {[%clk 0:00:27]}  Rb6+ {[%clk 0:00:02]} 58. Kh5 {[%clk 0:00:27]}  Rb1 {[%clk 0:00:02]} 59. h7 {[%clk 0:00:25]}  Rh1+ {[%clk 0:00:00]} 60. Kg6 {[%clk 0:00:26]} 1-0


[Site "https://www.chess.com"]

[Event "Titled Tuesday Blitz August 1 Late 2023"]
[White "Golubka, Petro"]
[Black "Bochnicka, Vladimir"]
[WhiteFideId "14114224"]
[BlackFideId "14943450"]
[WhiteElo "2741"]
[BlackElo "2492"]
[Result "0-1"]
[Round "3"]
[TimeControl "180+1"]
[Date "2023.08.01"]
[WhiteClock "0:00:01"]
[BlackClock "0:00:36"]
[Board "46"]

1. e4 {[%clk 0:02:55]}  c5 {[%clk 0:02:59]} 2. b3 {[%clk 0:02:55]}  Nc6 {[%clk 0:02:59]} 3. Bb2 {[%clk 0:02:55]}  e5 {[%clk 0:02:59]} 4. Bb5 {[%clk 0:02:54]}  Nge7 {[%clk 0:02:59]} 5. Nf3 {[%clk 0:02:50]}  d6 {[%clk 0:02:59]} 6. c3 {[%clk 0:02:50]}  a6 {[%clk 0:02:55]} 7. Bxc6+ {[%clk 0:02:46]}  Nxc6 {[%clk 0:02:56]} 8. d4 {[%clk 0:02:47]}  Bg4 {[%clk 0:02:44]} 9. d5 {[%clk 0:02:34]}  Ne7 {[%clk 0:02:40]} 10. h3 {[%clk 0:02:34]}  Bd7 {[%clk 0:02:36]} 11. Nbd2 {[%clk 0:02:32]}  b5 {[%clk 0:02:24]} 12. c4 {[%clk 0:02:33]}  b4 {[%clk 0:02:23]} 13. h4 {[%clk 0:02:20]}  h5 {[%clk 0:02:21]} 14. a3 {[%clk 0:02:17]}  a5 {[%clk 0:02:19]} 15. Nf1 {[%clk 0:02:13]}  Ng6 {[%clk 0:02:12]} 16. Ne3 {[%clk 0:02:12]}  Be7 {[%clk 0:02:09]} 17. g3 {[%clk 0:02:12]}  Nf8 {[%clk 0:01:57]} 18. Qe2 {[%clk 0:01:51]}  Nh7 {[%clk 0:01:56]} 19. axb4 {[%clk 0:01:37]}  axb4 {[%clk 0:01:56]} 20. Rxa8 {[%clk 0:01:38]}  Qxa8 {[%clk 0:01:56]} 21. Kd2 {[%clk 0:01:39]}  Nf6 {[%clk 0:01:44]} 22. Qd3 {[%clk 0:01:21]}  O-O {[%clk 0:01:36]} 23. Ra1 {[%clk 0:01:20]}  Qb7 {[%clk 0:01:34]} 24. Kc2 {[%clk 0:01:14]}  Ra8 {[%clk 0:01:33]} 25. Rxa8+ {[%clk 0:01:13]}  Qxa8 {[%clk 0:01:34]} 26. Nh2 {[%clk 0:01:06]}  Ng4 {[%clk 0:01:23]} 27. Nhxg4 {[%clk 0:01:05]}  hxg4 {[%clk 0:01:24]} 28. Nf5 {[%clk 0:01:02]}  Bf8 {[%clk 0:01:09]} 29. Qe2 {[%clk 0:01:01]}  g6 {[%clk 0:01:03]} 30. Ne3 {[%clk 0:00:34]}  f5 {[%clk 0:01:02]} 31. h5 {[%clk 0:00:33]}  Qc8 {[%clk 0:01:00]} 32. hxg6 {[%clk 0:00:31]}  f4 {[%clk 0:01:01]} 33. gxf4 {[%clk 0:00:24]}  exf4 {[%clk 0:01:02]} 34. e5 {[%clk 0:00:20]}  dxe5 {[%clk 0:00:51]} 35. Nf1 {[%clk 0:00:20]}  Bf5+ {[%clk 0:00:48]} 36. Kc1 {[%clk 0:00:20]}  Bg7 {[%clk 0:00:41]} 37. Nd2 {[%clk 0:00:18]}  Bxg6 {[%clk 0:00:39]} 38. Ne4 {[%clk 0:00:01]}  Qf5 {[%clk 0:00:36]} 0-1


[Site "https://www.chess.com"]

[Event "Titled Tuesday Blitz August 1 Late 2023"]
[White "FuenfgegenWilly"]
[Black "Manukyan, Sargis A."]
[BlackFideId "13303970"]
[WhiteElo "2427"]
[BlackElo "2658"]
[Result "1-0"]
[Round "3"]
[TimeControl "180+1"]
[Date "2023.08.01"]
[WhiteClock "0:00:06"]
[BlackClock "0:00:06"]
[Board "49"]

1. e4 {[%clk 0:02:57]}  c5 {[%clk 0:02:59]} 2. Nc3 {[%clk 0:02:57]}  d6 {[%clk 0:02:59]} 3. f4 {[%clk 0:02:57]}  Nc6 {[%clk 0:02:58]} 4. Bb5 {[%clk 0:02:57]}  Bd7 {[%clk 0:02:58]} 5. Nf3 {[%clk 0:02:57]}  g6 {[%clk 0:02:59]} 6. Bxc6 {[%clk 0:02:57]}  Bxc6 {[%clk 0:02:59]} 7. d3 {[%clk 0:02:58]}  Bg7 {[%clk 0:02:59]} 8. O-O {[%clk 0:02:59]}  e6 {[%clk 0:03:00]} 9. f5 {[%clk 0:02:58]}  gxf5 {[%clk 0:02:53]} 10. exf5 {[%clk 0:02:59]}  Qd7 {[%clk 0:02:49]} 11. fxe6 {[%clk 0:02:56]}  fxe6 {[%clk 0:02:49]} 12. Ng5 {[%clk 0:02:55]}  Nh6 {[%clk 0:02:48]} 13. Qh5+ {[%clk 0:02:43]}  Kd8 {[%clk 0:02:48]} 14. Nf7+ {[%clk 0:02:40]}  Nxf7 {[%clk 0:02:48]} 15. Rxf7 {[%clk 0:02:40]}  Bd4+ {[%clk 0:02:45]} 16. Kh1 {[%clk 0:02:37]}  Qe8 {[%clk 0:02:46]} 17. Bg5+ {[%clk 0:02:26]}  Kc8 {[%clk 0:02:46]} 18. Raf1 {[%clk 0:02:25]}  h6 {[%clk 0:02:37]} 19. Bh4 {[%clk 0:02:08]}  Rg8 {[%clk 0:02:33]} 20. Bg3 {[%clk 0:02:08]}  a6 {[%clk 0:01:55]} 21. Ne4 {[%clk 0:02:03]}  Bxe4 {[%clk 0:01:47]} 22. dxe4 {[%clk 0:02:04]}  Kb8 {[%clk 0:01:20]} 23. Bxd6+ {[%clk 0:01:56]}  Kc8 {[%clk 0:01:07]} 24. Rc7+ {[%clk 0:01:44]}  Kd8 {[%clk 0:01:04]} 25. Qxe8+ {[%clk 0:01:00]}  Kxe8 {[%clk 0:00:33]} 26. Re7+ {[%clk 0:00:59]}  Kd8 {[%clk 0:00:33]} 27. c3 {[%clk 0:00:48]}  Be3 {[%clk 0:00:21]} 28. Rff7 {[%clk 0:00:36]}  Bg5 {[%clk 0:00:22]} 29. Rxb7 {[%clk 0:00:34]}  Ke8 {[%clk 0:00:20]} 30. h3 {[%clk 0:00:30]}  Rd8 {[%clk 0:00:21]} 31. Bxc5 {[%clk 0:00:24]}  Rd1+ {[%clk 0:00:21]} 32. Kh2 {[%clk 0:00:23]}  e5 {[%clk 0:00:15]} 33. Rf8+ {[%clk 0:00:11]}  Rxf8 {[%clk 0:00:14]} 34. Rb8+ {[%clk 0:00:11]}  Rd8 {[%clk 0:00:12]} 35. Rxd8+ {[%clk 0:00:09]}  Bxd8 {[%clk 0:00:13]} 36. Bxf8 {[%clk 0:00:09]}  Kxf8 {[%clk 0:00:14]} 37. Kg3 {[%clk 0:00:08]}  Kf7 {[%clk 0:00:15]} 38. Kg4 {[%clk 0:00:09]}  Kg6 {[%clk 0:00:15]} 39. c4 {[%clk 0:00:09]}  h5+ {[%clk 0:00:15]} 40. Kf3 {[%clk 0:00:09]}  Kf7 {[%clk 0:00:14]} 41. g4 {[%clk 0:00:08]}  h4 {[%clk 0:00:14]} 42. Ke3 {[%clk 0:00:07]}  Ke6 {[%clk 0:00:14]} 43. b4 {[%clk 0:00:07]}  a5 {[%clk 0:00:11]} 44. a3 {[%clk 0:00:07]}  Kd6 {[%clk 0:00:10]} 45. Kd3 {[%clk 0:00:07]}  Kc6 {[%clk 0:00:10]} 46. Kc3 {[%clk 0:00:07]}  Be7 {[%clk 0:00:09]} 47. Kb3 {[%clk 0:00:07]}  Kb6 {[%clk 0:00:08]} 48. Ka4 {[%clk 0:00:08]}  Ka6 {[%clk 0:00:08]} 49. Kb3 {[%clk 0:00:07]}  Kb6 {[%clk 0:00:07]} 50. Ka4 {[%clk 0:00:07]}  axb4 {[%clk 0:00:08]} 51. axb4 {[%clk 0:00:07]}  Kc6 {[%clk 0:00:08]} 52. Ka5 {[%clk 0:00:07]}  Bd8+ {[%clk 0:00:08]} 53. Ka6 {[%clk 0:00:07]}  Kd6 {[%clk 0:00:06]} 54. Kb7 {[%clk 0:00:05]}  Kd7 {[%clk 0:00:05]} 55. c5 {[%clk 0:00:04]}  Be7 {[%clk 0:00:05]} 56. c6+ {[%clk 0:00:04]}  Ke6 {[%clk 0:00:04]} 57. c7 {[%clk 0:00:05]}  Bxb4 {[%clk 0:00:04]} 58. c8=Q+ {[%clk 0:00:05]}  Kf6 {[%clk 0:00:05]} 59. Qf5+ {[%clk 0:00:06]}  Kg7 {[%clk 0:00:05]} 60. Qxe5+ {[%clk 0:00:07]}  Kg6 {[%clk 0:00:05]} 61. Qf5+ {[%clk 0:00:07]}  Kh6 {[%clk 0:00:06]} 62. g5+ {[%clk 0:00:07]}  Kh5 {[%clk 0:00:06]} 63. g6+ {[%clk 0:00:05]}  Kh6 {[%clk 0:00:06]} 64. Kc6 {[%clk 0:00:05]}  Be7 {[%clk 0:00:06]} 65. Kd5 {[%clk 0:00:06]}  Bf6 {[%clk 0:00:06]} 66. Ke6 {[%clk 0:00:07]}  Be7 {[%clk 0:00:06]} 67. Kf7 {[%clk 0:00:07]}  Bf6 {[%clk 0:00:06]} 68. Qf4+ {[%clk 0:00:07]}  Bg5 {[%clk 0:00:06]} 69. Qg4 {[%clk 0:00:06]}  Bf6 {[%clk 0:00:06]} 70. g7 {[%clk 0:00:05]}  Bxg7 {[%clk 0:00:06]} 71. Qg6# {[%clk 0:00:06]} 1-0


[Site "https://www.chess.com"]

[Event "Titled Tuesday Blitz August 1 Late 2023"]
[White "Wieczorek, Oskar"]
[Black "Kula, Robert"]
[WhiteFideId "1133950"]
[BlackFideId "1101218"]
[WhiteElo "2653"]
[BlackElo "2247"]
[Result "0-1"]
[Round "3"]
[TimeControl "180+1"]
[Date "2023.08.01"]
[WhiteClock "0:00:00"]
[BlackClock "0:00:07"]
[Board "50"]

1. e4 {[%clk 0:03:00]}  c5 {[%clk 0:02:59]} 2. Nf3 {[%clk 0:03:00]}  Nc6 {[%clk 0:02:59]} 3. b4 {[%clk 0:03:01]}  cxb4 {[%clk 0:02:58]} 4. d4 {[%clk 0:03:01]}  d6 {[%clk 0:02:55]} 5. d5 {[%clk 0:02:58]}  Nb8 {[%clk 0:02:51]} 6. Qd4 {[%clk 0:02:49]}  Nf6 {[%clk 0:02:49]} 7. Qxb4 {[%clk 0:02:50]}  g6 {[%clk 0:02:48]} 8. Bb2 {[%clk 0:02:50]}  Bg7 {[%clk 0:02:48]} 9. Nbd2 {[%clk 0:02:51]}  O-O {[%clk 0:02:48]} 10. Bd3 {[%clk 0:02:51]}  b6 {[%clk 0:02:44]} 11. O-O {[%clk 0:02:46]}  Na6 {[%clk 0:02:44]} 12. Qa3 {[%clk 0:02:46]}  Nc5 {[%clk 0:02:44]} 13. Rfe1 {[%clk 0:02:36]}  Qc7 {[%clk 0:02:33]} 14. Nb3 {[%clk 0:02:04]}  Bb7 {[%clk 0:02:09]} 15. Nxc5 {[%clk 0:02:03]}  Qxc5 {[%clk 0:02:05]} 16. Qxc5 {[%clk 0:02:03]}  bxc5 {[%clk 0:02:05]} 17. Rab1 {[%clk 0:01:51]}  Rab8 {[%clk 0:01:57]} 18. Nd2 {[%clk 0:01:34]}  Bc8 {[%clk 0:01:38]} 19. c4 {[%clk 0:01:05]}  Bd7 {[%clk 0:01:36]} 20. e5 {[%clk 0:01:01]}  Ng4 {[%clk 0:01:29]} 21. f4 {[%clk 0:00:50]}  dxe5 {[%clk 0:01:23]} 22. fxe5 {[%clk 0:00:50]}  Rxb2 {[%clk 0:01:18]} 23. Rxb2 {[%clk 0:00:50]}  Bxe5 {[%clk 0:01:19]} 24. Rb7 {[%clk 0:00:47]}  Bd4+ {[%clk 0:01:18]} 25. Kf1 {[%clk 0:00:46]}  Nxh2+ {[%clk 0:01:14]} 26. Ke2 {[%clk 0:00:46]}  Bg4+ {[%clk 0:01:11]} 27. Nf3 {[%clk 0:00:47]}  Re8 {[%clk 0:01:02]} 28. Rh1 {[%clk 0:00:35]}  Nxf3 {[%clk 0:00:51]} 29. gxf3 {[%clk 0:00:36]}  Bh5 {[%clk 0:00:35]} 30. Rxa7 {[%clk 0:00:33]}  Be5 {[%clk 0:00:31]} 31. Rb1 {[%clk 0:00:21]}  e6 {[%clk 0:00:30]} 32. d6 {[%clk 0:00:09]}  Bxd6 {[%clk 0:00:30]} 33. Rbb7 {[%clk 0:00:09]}  g5 {[%clk 0:00:25]} 34. a4 {[%clk 0:00:09]}  g4 {[%clk 0:00:22]} 35. fxg4 {[%clk 0:00:10]}  Bxg4+ {[%clk 0:00:23]} 36. Kd2 {[%clk 0:00:11]}  Bf4+ {[%clk 0:00:22]} 37. Kc2 {[%clk 0:00:10]}  Bh5 {[%clk 0:00:17]} 38. a5 {[%clk 0:00:11]}  Rd8 {[%clk 0:00:16]} 39. Rd7 {[%clk 0:00:09]}  Rb8 {[%clk 0:00:14]} 40. a6 {[%clk 0:00:06]}  Be5 {[%clk 0:00:09]} 41. Rab7 {[%clk 0:00:07]}  Ra8 {[%clk 0:00:09]} 42. a7 {[%clk 0:00:05]}  Kg7 {[%clk 0:00:08]} 43. Be4 {[%clk 0:00:05]}  Bg6 {[%clk 0:00:07]} 44. Rbc7 {[%clk 0:00:03]}  Bxe4+ {[%clk 0:00:06]} 45. Kb3 {[%clk 0:00:02]}  Bxc7 {[%clk 0:00:07]} 46. Rxc7 {[%clk 0:00:02]}  h5 {[%clk 0:00:07]} 47. Ka4 {[%clk 0:00:00]}  h4 {[%clk 0:00:07]} 0-1


[Site "https://www.chess.com"]

[Event "Titled Tuesday Blitz August 1 Late 2023"]
[White "Novik, Maxim"]
[Black "Rasulov, Vugar"]
[WhiteFideId "4102924"]
[BlackFideId "13402390"]
[WhiteElo "2496"]
[BlackElo "2832"]
[Result "1/2-1/2"]
[Round "3"]
[TimeControl "180+1"]
[Date "2023.08.01"]
[WhiteClock "0:00:16"]
[BlackClock "0:00:09"]
[Board "54"]

1. b3 {[%clk 0:03:00]}  g6 {[%clk 0:02:59]} 2. Bb2 {[%clk 0:03:00]}  Nf6 {[%clk 0:02:59]} 3. c4 {[%clk 0:02:59]}  Bg7 {[%clk 0:02:59]} 4. Nf3 {[%clk 0:03:00]}  O-O {[%clk 0:03:00]} 5. g3 {[%clk 0:03:00]}  d6 {[%clk 0:03:00]} 6. d4 {[%clk 0:02:59]}  e5 {[%clk 0:02:54]} 7. dxe5 {[%clk 0:02:58]}  Nfd7 {[%clk 0:02:54]} 8. Bg2 {[%clk 0:02:58]}  dxe5 {[%clk 0:02:55]} 9. Nc3 {[%clk 0:02:56]}  e4 {[%clk 0:02:53]} 10. Nd2 {[%clk 0:02:46]}  e3 {[%clk 0:02:52]} 11. fxe3 {[%clk 0:02:46]}  Ne5 {[%clk 0:02:46]} 12. Nf3 {[%clk 0:02:41]}  Ng4 {[%clk 0:02:40]} 13. Qc1 {[%clk 0:02:38]}  Re8 {[%clk 0:02:32]} 14. Nd1 {[%clk 0:02:36]}  Bxb2 {[%clk 0:02:30]} 15. Qxb2 {[%clk 0:02:35]}  Nxe3 {[%clk 0:02:25]} 16. Nxe3 {[%clk 0:02:35]}  Rxe3 {[%clk 0:02:26]} 17. O-O {[%clk 0:02:33]}  Nc6 {[%clk 0:02:24]} 18. Rad1 {[%clk 0:02:27]}  Qe7 {[%clk 0:02:24]} 19. Rd2 {[%clk 0:02:23]}  Bf5 {[%clk 0:02:17]} 20. Nd4 {[%clk 0:02:19]}  Nxd4 {[%clk 0:02:17]} 21. Qxd4 {[%clk 0:02:19]}  c5 {[%clk 0:02:06]} 22. Qf4 {[%clk 0:02:03]}  Re8 {[%clk 0:02:03]} 23. g4 {[%clk 0:01:49]}  Bc8 {[%clk 0:01:53]} 24. Bd5 {[%clk 0:01:48]}  Rf8 {[%clk 0:01:43]} 25. Rf3 {[%clk 0:01:18]}  Rxf3 {[%clk 0:01:17]} 26. exf3 {[%clk 0:01:14]}  Kg7 {[%clk 0:01:14]} 27. Kf2 {[%clk 0:01:12]}  Re8 {[%clk 0:01:12]} 28. Be4 {[%clk 0:01:11]}  h6 {[%clk 0:01:03]} 29. Kg3 {[%clk 0:01:07]}  b6 {[%clk 0:00:52]} 30. h4 {[%clk 0:01:06]}  Bb7 {[%clk 0:00:40]} 31. Bxb7 {[%clk 0:00:52]}  Qxb7 {[%clk 0:00:41]} 32. g5 {[%clk 0:00:52]}  Qe7 {[%clk 0:00:32]} 33. gxh6+ {[%clk 0:00:46]}  Kh7 {[%clk 0:00:32]} 34. Kg2 {[%clk 0:00:29]}  Qe6 {[%clk 0:00:33]} 35. Kh2 {[%clk 0:00:21]}  Re7 {[%clk 0:00:31]} 36. Rg2 {[%clk 0:00:19]}  Qe5 {[%clk 0:00:21]} 37. Qxe5 {[%clk 0:00:19]}  Rxe5 {[%clk 0:00:21]} 38. Rd2 {[%clk 0:00:19]}  Re7 {[%clk 0:00:16]} 39. Kg3 {[%clk 0:00:19]}  Kxh6 {[%clk 0:00:17]} 40. Rd6 {[%clk 0:00:19]}  Kh5 {[%clk 0:00:16]} 41. Rf6 {[%clk 0:00:19]}  Rd7 {[%clk 0:00:15]} 42. a3 {[%clk 0:00:18]}  Re7 {[%clk 0:00:12]} 43. b4 {[%clk 0:00:18]}  cxb4 {[%clk 0:00:12]} 44. axb4 {[%clk 0:00:18]}  Rc7 {[%clk 0:00:13]} 45. Rf4 {[%clk 0:00:18]}  f5 {[%clk 0:00:12]} 46. Rd4 {[%clk 0:00:19]}  Kh6 {[%clk 0:00:11]} 47. Kf4 {[%clk 0:00:19]}  Kh5 {[%clk 0:00:11]} 48. Ke5 {[%clk 0:00:19]}  Re7+ {[%clk 0:00:11]} 49. Kd6 {[%clk 0:00:19]}  Re3 {[%clk 0:00:11]} 50. c5 {[%clk 0:00:19]}  bxc5 {[%clk 0:00:11]} 51. bxc5 {[%clk 0:00:19]}  Rxf3 {[%clk 0:00:12]} 52. c6 {[%clk 0:00:19]}  Rc3 {[%clk 0:00:13]} 53. c7 {[%clk 0:00:19]}  g5 {[%clk 0:00:06]} 54. hxg5 {[%clk 0:00:19]}  Kxg5 {[%clk 0:00:07]} 55. Kd7 {[%clk 0:00:19]}  f4 {[%clk 0:00:06]} 56. Rd6 {[%clk 0:00:19]}  Rxc7+ {[%clk 0:00:06]} 57. Kxc7 {[%clk 0:00:19]}  f3 {[%clk 0:00:06]} 58. Kc6 {[%clk 0:00:17]}  f2 {[%clk 0:00:05]} 59. Rd1 {[%clk 0:00:17]}  Kf4 {[%clk 0:00:06]} 60. Kc5 {[%clk 0:00:17]}  Ke3 {[%clk 0:00:06]} 61. Kb4 {[%clk 0:00:17]}  Ke2 {[%clk 0:00:06]} 62. Ra1 {[%clk 0:00:17]}  a5+ {[%clk 0:00:07]} 63. Kxa5 {[%clk 0:00:17]}  f1=Q {[%clk 0:00:08]} 64. Rxf1 {[%clk 0:00:16]}  Kxf1 {[%clk 0:00:09]} 1/2-1/2


[Site "https://www.chess.com"]

[Event "Titled Tuesday Blitz August 1 Late 2023"]
[White "Koutlas, Nikolaos"]
[Black "Zierk, Steven"]
[WhiteFideId "25827138"]
[BlackFideId "2034255"]
[WhiteElo "2495"]
[BlackElo "2830"]
[Result "0-1"]
[Round "3"]
[TimeControl "180+1"]
[Date "2023.08.01"]
[WhiteClock "0:00:38"]
[BlackClock "0:02:14"]
[Board "55"]

1. e4 {[%clk 0:02:59]}  e6 {[%clk 0:02:59]} 2. d4 {[%clk 0:02:55]}  d5 {[%clk 0:03:00]} 3. Nd2 {[%clk 0:02:54]}  c5 {[%clk 0:02:59]} 4. exd5 {[%clk 0:02:53]}  Qxd5 {[%clk 0:03:00]} 5. Ngf3 {[%clk 0:02:52]}  cxd4 {[%clk 0:03:00]} 6. Bc4 {[%clk 0:02:53]}  Qd7 {[%clk 0:03:00]} 7. Nb3 {[%clk 0:02:50]}  Nc6 {[%clk 0:03:00]} 8. O-O {[%clk 0:02:48]}  Nf6 {[%clk 0:02:59]} 9. Nbxd4 {[%clk 0:02:46]}  Nxd4 {[%clk 0:03:00]} 10. Nxd4 {[%clk 0:02:45]}  a6 {[%clk 0:03:00]} 11. Re1 {[%clk 0:02:33]}  Bc5 {[%clk 0:02:49]} 12. Be3 {[%clk 0:02:16]}  O-O {[%clk 0:02:49]} 13. c3 {[%clk 0:01:44]}  b6 {[%clk 0:02:44]} 14. b4 {[%clk 0:01:37]}  Bd6 {[%clk 0:02:41]} 15. Nxe6 {[%clk 0:01:24]}  fxe6 {[%clk 0:02:36]} 16. Bf4 {[%clk 0:00:55]}  Bxf4 {[%clk 0:02:24]} 17. Bxe6+ {[%clk 0:00:52]}  Qxe6 {[%clk 0:02:24]} 18. Rxe6 {[%clk 0:00:52]}  Bxe6 {[%clk 0:02:25]} 19. Qf3 {[%clk 0:00:43]}  Nd5 {[%clk 0:02:16]} 20. Re1 {[%clk 0:00:40]}  Bxh2+ {[%clk 0:02:15]} 21. Kxh2 {[%clk 0:00:39]}  Rxf3 {[%clk 0:02:14]} 22. gxf3 {[%clk 0:00:38]} 0-1


[Site "https://www.chess.com"]

[Event "Titled Tuesday Blitz August 1 Late 2023"]
[White "Nazari, Arad"]
[Black "MFatigue"]
[WhiteFideId "12577324"]
[WhiteElo "2769"]
[BlackElo "2494"]
[Result "1-0"]
[Round "3"]
[TimeControl "180+1"]
[Date "2023.08.01"]
[WhiteClock "0:00:24"]
[BlackClock "0:00:03"]
[Board "56"]

1. e4 {[%clk 0:02:59]}  e6 {[%clk 0:03:00]} 2. d4 {[%clk 0:02:59]}  d5 {[%clk 0:03:01]} 3. e5 {[%clk 0:03:00]}  c5 {[%clk 0:03:01]} 4. c3 {[%clk 0:03:00]}  Nc6 {[%clk 0:03:01]} 5. Nf3 {[%clk 0:03:00]}  Bd7 {[%clk 0:03:02]} 6. Be2 {[%clk 0:02:57]}  Nge7 {[%clk 0:03:02]} 7. Na3 {[%clk 0:02:57]}  Nf5 {[%clk 0:03:02]} 8. Nc2 {[%clk 0:02:57]}  cxd4 {[%clk 0:03:02]} 9. cxd4 {[%clk 0:02:58]}  Qb6 {[%clk 0:03:03]} 10. O-O {[%clk 0:02:58]}  Na5 {[%clk 0:03:04]} 11. Rb1 {[%clk 0:02:52]}  Bb5 {[%clk 0:03:03]} 12. Bd2 {[%clk 0:02:37]}  Bxe2 {[%clk 0:02:59]} 13. Qxe2 {[%clk 0:02:38]}  Nc4 {[%clk 0:02:59]} 14. b3 {[%clk 0:02:36]}  Nxd2 {[%clk 0:02:47]} 15. Qxd2 {[%clk 0:02:36]}  Be7 {[%clk 0:02:47]} 16. Ne3 {[%clk 0:02:37]}  Bb4 {[%clk 0:02:38]} 17. Qd3 {[%clk 0:02:36]}  Nxe3 {[%clk 0:02:28]} 18. fxe3 {[%clk 0:02:36]}  O-O-O {[%clk 0:02:29]} 19. Ng5 {[%clk 0:02:34]}  f6 {[%clk 0:02:14]} 20. Nf7 {[%clk 0:02:29]}  f5 {[%clk 0:02:13]} 21. Rf2 {[%clk 0:02:20]}  Kb8 {[%clk 0:02:13]} 22. Nxh8 {[%clk 0:02:20]}  Rxh8 {[%clk 0:02:11]} 23. Rc2 {[%clk 0:02:20]}  a6 {[%clk 0:01:59]} 24. Rbc1 {[%clk 0:01:55]}  Ba3 {[%clk 0:01:52]} 25. Rb1 {[%clk 0:01:56]}  Bb4 {[%clk 0:01:51]} 26. Rf1 {[%clk 0:01:43]}  g6 {[%clk 0:01:51]} 27. Qe2 {[%clk 0:01:44]}  h6 {[%clk 0:01:42]} 28. h3 {[%clk 0:01:42]}  g5 {[%clk 0:01:41]} 29. Kh2 {[%clk 0:01:40]}  h5 {[%clk 0:01:36]} 30. Qf3 {[%clk 0:01:34]}  g4 {[%clk 0:01:27]} 31. Qf4 {[%clk 0:01:30]}  Qd8 {[%clk 0:01:21]} 32. Kg1 {[%clk 0:01:24]}  Qh4 {[%clk 0:01:15]} 33. Qf2 {[%clk 0:01:18]}  Qe7 {[%clk 0:01:14]} 34. Qf4 {[%clk 0:01:06]}  Qh4 {[%clk 0:01:13]} 35. e4 {[%clk 0:00:54]}  fxe4 {[%clk 0:00:31]} 36. Qf6 {[%clk 0:00:54]}  Qxf6 {[%clk 0:00:30]} 37. Rxf6 {[%clk 0:00:55]}  Re8 {[%clk 0:00:28]} 38. hxg4 {[%clk 0:00:55]}  hxg4 {[%clk 0:00:28]} 39. Rg6 {[%clk 0:00:55]}  Ba5 {[%clk 0:00:24]} 40. Rxg4 {[%clk 0:00:53]}  Bb6 {[%clk 0:00:25]} 41. Rd2 {[%clk 0:00:53]}  Kc7 {[%clk 0:00:23]} 42. Kf2 {[%clk 0:00:41]}  Rf8+ {[%clk 0:00:21]} 43. Ke3 {[%clk 0:00:42]}  Rf1 {[%clk 0:00:22]} 44. Rc2+ {[%clk 0:00:40]}  Kd7 {[%clk 0:00:20]} 45. Rg7+ {[%clk 0:00:40]}  Kd8 {[%clk 0:00:18]} 46. Rxb7 {[%clk 0:00:41]}  Ba5 {[%clk 0:00:16]} 47. Rc6 {[%clk 0:00:33]}  Re1+ {[%clk 0:00:15]} 48. Kf2 {[%clk 0:00:33]}  e3+ {[%clk 0:00:15]} 49. Kf3 {[%clk 0:00:32]}  Bd2 {[%clk 0:00:15]} 50. Rxe6 {[%clk 0:00:24]}  Rf1+ {[%clk 0:00:12]} 51. Ke2 {[%clk 0:00:25]}  Rf2+ {[%clk 0:00:13]} 52. Kd3 {[%clk 0:00:25]}  Bc1 {[%clk 0:00:09]} 53. Rg6 {[%clk 0:00:25]}  Rd2+ {[%clk 0:00:06]} 54. Kc3 {[%clk 0:00:25]}  Bb2+ {[%clk 0:00:05]} 55. Kb4 {[%clk 0:00:25]}  Rxd4+ {[%clk 0:00:06]} 56. Ka5 {[%clk 0:00:26]}  Kc8 {[%clk 0:00:05]} 57. Rf7 {[%clk 0:00:24]}  Bc3+ {[%clk 0:00:05]} 58. Kxa6 {[%clk 0:00:24]}  Bb4 {[%clk 0:00:03]} 59. Rg8+ {[%clk 0:00:24]} 1-0


[Site "https://www.chess.com"]